Department family,Entity,Date,Expense Type,Expense area,Supplier,Transaction number,AP Amount (�),VAT registration number
Department of Health,NHS Barnsley CCG,31/08/2016,C&M-APMS Contract Value,PRC DELEGATED CO-COMMISSIONING,BARNSLEY HEALTHCARE FEDERATION,13757556,"24,181.58 ",
Department of Health,NHS Barnsley CCG,31/08/2016,C&M-APMS OOH Opt Outs,PRC DELEGATED CO-COMMISSIONING,BARNSLEY HEALTHCARE FEDERATION,13757556,2.84 ,
Department of Health,NHS Barnsley CCG,31/08/2016,C&M-APMS Prem Actual Rent,PRC DELEGATED CO-COMMISSIONING,BARNSLEY HEALTHCARE FEDERATION,13757556,"1,429.55 ",
Department of Health,NHS Barnsley CCG,31/08/2016,C&M-APMS Prem Rates,PRC DELEGATED CO-COMMISSIONING,BARNSLEY HEALTHCARE FEDERATION,13757556,377.52 ,
Department of Health,NHS Barnsley CCG,31/08/2016,C&M-APMS Contract Value,PRC DELEGATED CO-COMMISSIONING,BARNSLEY HEALTHCARE FEDERATION,13823991,"30,306.52 ",
Department of Health,NHS Barnsley CCG,31/08/2016,C&M-APMS OOH Opt Outs,PRC DELEGATED CO-COMMISSIONING,BARNSLEY HEALTHCARE FEDERATION,13823991,"(1,500.14)",
Department of Health,NHS Barnsley CCG,31/08/2016,C&M-APMS Contract Value,PRC DELEGATED CO-COMMISSIONING,BARNSLEY HEALTHCARE FEDERATION,13823992,"31,399.66 ",
Department of Health,NHS Barnsley CCG,31/08/2016,C&M-APMS OOH Opt Outs,PRC DELEGATED CO-COMMISSIONING,BARNSLEY HEALTHCARE FEDERATION,13823992,"(1,554.25)",
Department of Health,NHS Barnsley CCG,31/07/2016,Hcare Srv Rec Fdtn Trust-CQUIN,ACUTE COMMISSIONING,BARNSLEY HOSPITAL NHS FOUNDATION TRUST,13593040,"251,865.00 ",
Department of Health,NHS Barnsley CCG,31/07/2016,Hcare Srv Rec Fdtn Trust-Contract Baseline,ACUTE COMMISSIONING,BARNSLEY HOSPITAL NHS FOUNDATION TRUST,13593040,"10,531,214.00 ",
Department of Health,NHS Barnsley CCG,31/08/2016,Chrgs from SLA,COMMISSIONING,BARNSLEY METROPOLITAN BOROUGH COUNCIL,13906081,"66,666.67 ",
Department of Health,NHS Barnsley CCG,31/08/2016,Clinical&Medical-Othe Public Sector,COMMISSIONING - NON ACUTE,BARNSLEY METROPOLITAN BOROUGH COUNCIL,13906081,"1,430,473.33 ",
Department of Health,NHS Barnsley CCG,31/08/2016,Clinical&Medical-Othe Public Sector,MENTAL HEALTH SERVICES - OTHER,BARNSLEY METROPOLITAN BOROUGH COUNCIL,13906081,"101,123.33 ",
Department of Health,NHS Barnsley CCG,31/08/2016,Clinical&Medical-Othe Public Sector,WINTER PRESSURES,BARNSLEY METROPOLITAN BOROUGH COUNCIL,13906081,"148,478.00 ",
Department of Health,NHS Barnsley CCG,31/08/2016,Cont Care- Adult 100% Fully Funded,CHC ADULT FULLY FUNDED,BARNSLEY METROPOLITAN BOROUGH COUNCIL,13906081,"20,927.67 ",
Department of Health,NHS Barnsley CCG,31/08/2016,GROSSRECOVEMPBEN - SALARIES & WAGES,COLLABORATIVE COMMISSIONING,BARNSLEY METROPOLITAN BOROUGH COUNCIL,13906081,"(19,330.00)",
Department of Health,NHS Barnsley CCG,31/08/2016,Local AuthorityRevenue-Non-Contract,COMMUNITY SERVICES,BARNSLEY METROPOLITAN BOROUGH COUNCIL,13906081,"(441,623.33)",
Department of Health,NHS Barnsley CCG,31/08/2016,Local AuthorityRevenue-Non-Contract,MENTAL HEALTH SERVICES - SPECIALIST SERVICES,BARNSLEY METROPOLITAN BOROUGH COUNCIL,13906081,"(500,000.00)",
Department of Health,NHS Barnsley CCG,31/08/2016,Local AuthorityRevenue-Non-Contract,PROGRAMME PROJECTS,BARNSLEY METROPOLITAN BOROUGH COUNCIL,13906081,"(2,500,000.00)",
Department of Health,NHS Barnsley CCG,31/08/2016,Local AuthorityRevenue-Non-Contract,Winter Resilience,BARNSLEY METROPOLITAN BOROUGH COUNCIL,13906081,"(23,000.00)",
Department of Health,NHS Barnsley CCG,31/08/2016,Participation Fees,COMMUNITY SERVICES,BARNSLEY METROPOLITAN BOROUGH COUNCIL,13906081,"47,000.00 ",
Department of Health,NHS Barnsley CCG,31/08/2016,Soc Care-Bed-Based Int Care Servs,COMMUNITY SERVICES,BARNSLEY METROPOLITAN BOROUGH COUNCIL,13906081,"1,228,333.33 ",
Department of Health,NHS Barnsley CCG,31/08/2016,Soc Care-Maintaining Eligib Crit,COMMUNITY SERVICES,BARNSLEY METROPOLITAN BOROUGH COUNCIL,13906081,"1,581,666.67 ",
Department of Health,NHS Barnsley CCG,31/08/2016,Soc Care-Other Soc Care,COMMUNITY SERVICES,BARNSLEY METROPOLITAN BOROUGH COUNCIL,13906081,"233,333.33 ",
Department of Health,NHS Barnsley CCG,31/08/2016,Soc Care-Re-ablement services,COMMUNITY SERVICES,BARNSLEY METROPOLITAN BOROUGH COUNCIL,13906081,"16,333.33 ",
Department of Health,NHS Barnsley CCG,31/08/2016,Social Care-Res Short Stay Exp,COMMUNITY SERVICES,BARNSLEY METROPOLITAN BOROUGH COUNCIL,13906081,"253,666.67 ",
Department of Health,NHS Barnsley CCG,31/08/2016,Clinical&Medical-Commercial Sector,ACUTE COMMISSIONING,BMI HEALTHCARE COLLECTIONS,14016421,"37,156.35 ",
Department of Health,NHS Barnsley CCG,31/08/2016,Clinical&Medical-Commercial Sector,ACUTE COMMISSIONING,CARE UK CLINICAL SERVICES LTD,13685429,"27,286.07 ",
Department of Health,NHS Barnsley CCG,31/08/2016,Clinical&Medical-Commercial Sector,OUT OF HOURS,CARE UK CLINICAL SERVICES LTD,13685433,"161,281.08 ",
Department of Health,NHS Barnsley CCG,31/08/2016,Clinical&Medical-Commercial Sector,ACUTE COMMISSIONING,CLAREMONT HOSPITAL,13852232,"48,289.00 ",
Department of Health,NHS Barnsley CCG,31/08/2016,Clinical&Medical-Commercial Sector,ACUTE COMMISSIONING,CLAREMONT HOSPITAL,14032748,"(38,301.00)",
Department of Health,NHS Barnsley CCG,31/08/2016,Voids and Subsidies,RECHARGES NHS PROPERTY SERVICES LTD,COMMUNITY HEALTH PARTNERSHIPS LTD,13906050,"62,321.32 ",GB782562113
Department of Health,NHS Barnsley CCG,31/08/2016,Cont Care-Learning Disab(<65),CHC ADULT JOINT FUNDED,DANSHELL HEALTHCARE LTD,14045111,"34,565.00 ",
Department of Health,NHS Barnsley CCG,31/08/2016,C&M-GMS Global Sum,PRC DELEGATED CO-COMMISSIONING,NHS BARNSLEY GP,13976041,"74,354.22 ",
Department of Health,NHS Barnsley CCG,31/08/2016,C&M-GMS Prem Healthcentre Rent,PRC DELEGATED CO-COMMISSIONING,NHS BARNSLEY GP,13976041,"16,460.15 ",
Department of Health,NHS Barnsley CCG,31/08/2016,C&M-GMS QOF Aspiration,PRC DELEGATED CO-COMMISSIONING,NHS BARNSLEY GP,13976041,"6,825.50 ",
Department of Health,NHS Barnsley CCG,31/08/2016,C&M-PMS Contract Value,PRC DELEGATED CO-COMMISSIONING,NHS BARNSLEY GP,13763709,"(42,006.75)",
Department of Health,NHS Barnsley CCG,31/08/2016,C&M-PMS GP Statutory Levy,PRC DELEGATED CO-COMMISSIONING,NHS BARNSLEY GP,13763709,(206.43),
Department of Health,NHS Barnsley CCG,31/08/2016,C&M-PMS Out of Hours Opt Outs,PRC DELEGATED CO-COMMISSIONING,NHS BARNSLEY GP,13763709,(37.34),
Department of Health,NHS Barnsley CCG,31/08/2016,C&M-PMS Voluntary Levy,PRC DELEGATED CO-COMMISSIONING,NHS BARNSLEY GP,13763709,(36.13),
Department of Health,NHS Barnsley CCG,31/08/2016,C&M-PMS Contract Value,PRC DELEGATED CO-COMMISSIONING,NHS BARNSLEY GP,13763710,"88,321.86 ",
Department of Health,NHS Barnsley CCG,31/08/2016,C&M-PMS Out of Hours Opt Outs,PRC DELEGATED CO-COMMISSIONING,NHS BARNSLEY GP,13763710,"(2,252.58)",
Department of Health,NHS Barnsley CCG,31/08/2016,C&M-PMS QOF Aspiration,PRC DELEGATED CO-COMMISSIONING,NHS BARNSLEY GP,13763710,"4,886.06 ",
Department of Health,NHS Barnsley CCG,31/08/2016,Hcare Srv Rec Fdtn Trust-CQUIN,ACUTE COMMISSIONING,DONCASTER AND BASSETLAW HOSPITALS NHS FOUNDATION TRUST,13906116,"6,490.00 ",
Department of Health,NHS Barnsley CCG,31/08/2016,Hcare Srv Rec Fdtn Trust-Contract Baseline,ACUTE COMMISSIONING,DONCASTER AND BASSETLAW HOSPITALS NHS FOUNDATION TRUST,13906116,"558,167.00 ",
Department of Health,NHS Barnsley CCG,31/07/2016,Hcare Srv Rec Fdtn Trust-CQUIN,ACUTE COMMISSIONING,DONCASTER AND BASSETLAW HOSPITALS NHS FOUNDATION TRUST,13537307,"6,490.00 ",
Department of Health,NHS Barnsley CCG,31/07/2016,Hcare Srv Rec Fdtn Trust-Contract Baseline,ACUTE COMMISSIONING,DONCASTER AND BASSETLAW HOSPITALS NHS FOUNDATION TRUST,13537307,"558,167.00 ",
Department of Health,NHS Barnsley CCG,31/08/2016,C&M-PMS Contract Value,PRC DELEGATED CO-COMMISSIONING,NHS BARNSLEY GP,13757529,"(78,377.69)",
Department of Health,NHS Barnsley CCG,31/08/2016,C&M-PMS GP Statutory Levy,PRC DELEGATED CO-COMMISSIONING,NHS BARNSLEY GP,13757529,(367.63),
Department of Health,NHS Barnsley CCG,31/08/2016,C&M-PMS Out of Hours Opt Outs,PRC DELEGATED CO-COMMISSIONING,NHS BARNSLEY GP,13757529,(64.54),
Department of Health,NHS Barnsley CCG,31/08/2016,C&M-PMS Voluntary Levy,PRC DELEGATED CO-COMMISSIONING,NHS BARNSLEY GP,13757529,(64.34),
Department of Health,NHS Barnsley CCG,31/08/2016,ME-PMS GP Pension EEs-PMS,PRC DELEGATED CO-COMMISSIONING,NHS BARNSLEY GP,13757529,"(10,042.08)",
Department of Health,NHS Barnsley CCG,31/08/2016,ME-PMS GP Pension ERs Adjs - PMS,PRC DELEGATED CO-COMMISSIONING,NHS BARNSLEY GP,13757529,"(10,164.92)",
Department of Health,NHS Barnsley CCG,31/08/2016,C&M-PMS Contract Value,PRC DELEGATED CO-COMMISSIONING,NHS BARNSLEY GP,13757530,"165,167.60 ",
Department of Health,NHS Barnsley CCG,31/08/2016,C&M-PMS Out of Hours Opt Outs,PRC DELEGATED CO-COMMISSIONING,NHS BARNSLEY GP,13757530,"(4,399.77)",
Department of Health,NHS Barnsley CCG,31/08/2016,C&M-PMS Prem Healthcentre Rent,PRC DELEGATED CO-COMMISSIONING,NHS BARNSLEY GP,13757530,"19,781.47 ",
Department of Health,NHS Barnsley CCG,31/08/2016,C&M-PMS Prem Notional Rent,PRC DELEGATED CO-COMMISSIONING,NHS BARNSLEY GP,13757530,"1,833.33 ",
Department of Health,NHS Barnsley CCG,31/08/2016,C&M-PMS Prem Rates,PRC DELEGATED CO-COMMISSIONING,NHS BARNSLEY GP,13757530,270.23 ,
Department of Health,NHS Barnsley CCG,31/08/2016,C&M-PMS QOF Aspiration,PRC DELEGATED CO-COMMISSIONING,NHS BARNSLEY GP,13757530,"9,268.60 ",
Department of Health,NHS Barnsley CCG,31/08/2016,C&M-GMS LES Quality Premium,COMMISSIONING SCHEMES,NHS BARNSLEY GP,13906106,"(54,720.10)",
Department of Health,NHS Barnsley CCG,31/08/2016,C&M-GMS LES Quality Premium,COMMISSIONING SCHEMES,NHS BARNSLEY GP,14032797,"22,179.10 ",
Department of Health,NHS Barnsley CCG,31/08/2016,Clinical&Medical-Clinical Other,COMMISSIONING SCHEMES,NHS BARNSLEY GP,14032797,"19,792.71 ",
Department of Health,NHS Barnsley CCG,31/08/2016,C&M-PMS Contract Value,PRC DELEGATED CO-COMMISSIONING,NHS BARNSLEY GP,13757532,"28,392.02 ",
Department of Health,NHS Barnsley CCG,31/08/2016,C&M-PMS Out of Hours Opt Outs,PRC DELEGATED CO-COMMISSIONING,NHS BARNSLEY GP,13757532,(757.25),
Department of Health,NHS Barnsley CCG,31/08/2016,C&M-PMS Prem Actual Rent,PRC DELEGATED CO-COMMISSIONING,NHS BARNSLEY GP,13757532,674.50 ,
Department of Health,NHS Barnsley CCG,31/08/2016,C&M-PMS QOF Aspiration,PRC DELEGATED CO-COMMISSIONING,NHS BARNSLEY GP,13757532,"1,375.99 ",
Department of Health,NHS Barnsley CCG,31/08/2016,C&M-PMS Contract Value,PRC DELEGATED CO-COMMISSIONING,NHS BARNSLEY GP,13759365,"(33,067.57)",
Department of Health,NHS Barnsley CCG,31/08/2016,C&M-PMS GP Statutory Levy,PRC DELEGATED CO-COMMISSIONING,NHS BARNSLEY GP,13759365,(156.23),
Department of Health,NHS Barnsley CCG,31/08/2016,C&M-PMS Out of Hours Opt Outs,PRC DELEGATED CO-COMMISSIONING,NHS BARNSLEY GP,13759365,(27.15),
Department of Health,NHS Barnsley CCG,31/08/2016,C&M-PMS Voluntary Levy,PRC DELEGATED CO-COMMISSIONING,NHS BARNSLEY GP,13759365,(27.34),
Department of Health,NHS Barnsley CCG,31/08/2016,ME-PMS GP Pension EEs-PMS,PRC DELEGATED CO-COMMISSIONING,NHS BARNSLEY GP,13759365,(520.83),
Department of Health,NHS Barnsley CCG,31/08/2016,ME-PMS GP Pension ERs Adjs - PMS,PRC DELEGATED CO-COMMISSIONING,NHS BARNSLEY GP,13759365,(595.83),
Department of Health,NHS Barnsley CCG,31/08/2016,C&M-PMS Contract Value,PRC DELEGATED CO-COMMISSIONING,NHS BARNSLEY GP,13759378,"69,578.28 ",
Department of Health,NHS Barnsley CCG,31/08/2016,C&M-PMS Out of Hours Opt Outs,PRC DELEGATED CO-COMMISSIONING,NHS BARNSLEY GP,13759378,"(1,850.68)",
Department of Health,NHS Barnsley CCG,31/08/2016,C&M-PMS Prem Healthcentre Rent,PRC DELEGATED CO-COMMISSIONING,NHS BARNSLEY GP,13759378,"1,189.84 ",
Department of Health,NHS Barnsley CCG,31/08/2016,C&M-PMS Prem Rates,PRC DELEGATED CO-COMMISSIONING,NHS BARNSLEY GP,13759378,"3,064.83 ",
Department of Health,NHS Barnsley CCG,31/08/2016,C&M-PMS QOF Aspiration,PRC DELEGATED CO-COMMISSIONING,NHS BARNSLEY GP,13759378,"4,059.35 ",
Department of Health,NHS Barnsley CCG,31/08/2016,C&M-PMS Contract Value,PRC DELEGATED CO-COMMISSIONING,NHS BARNSLEY GP,13757533,"(42,224.08)",
Department of Health,NHS Barnsley CCG,31/08/2016,C&M-PMS GP Statutory Levy,PRC DELEGATED CO-COMMISSIONING,NHS BARNSLEY GP,13757533,(220.37),
Department of Health,NHS Barnsley CCG,31/08/2016,C&M-PMS Out of Hours Opt Outs,PRC DELEGATED CO-COMMISSIONING,NHS BARNSLEY GP,13757533,(39.83),
Department of Health,NHS Barnsley CCG,31/08/2016,C&M-PMS Voluntary Levy,PRC DELEGATED CO-COMMISSIONING,NHS BARNSLEY GP,13757533,(38.56),
Department of Health,NHS Barnsley CCG,31/08/2016,ME-PMS GP Pension EEs-PMS,PRC DELEGATED CO-COMMISSIONING,NHS BARNSLEY GP,13757533,"(3,522.50)",
Department of Health,NHS Barnsley CCG,31/08/2016,ME-PMS GP Pension ERs Adjs - PMS,PRC DELEGATED CO-COMMISSIONING,NHS BARNSLEY GP,13757533,"(3,598.83)",
Department of Health,NHS Barnsley CCG,31/08/2016,C&M-PMS Contract Value,PRC DELEGATED CO-COMMISSIONING,NHS BARNSLEY GP,13757534,"89,303.30 ",
Department of Health,NHS Barnsley CCG,31/08/2016,C&M-PMS Out of Hours Opt Outs,PRC DELEGATED CO-COMMISSIONING,NHS BARNSLEY GP,13757534,"(2,381.67)",
Department of Health,NHS Barnsley CCG,31/08/2016,C&M-PMS Prem Healthcentre Rent,PRC DELEGATED CO-COMMISSIONING,NHS BARNSLEY GP,13757534,"21,557.03 ",
Department of Health,NHS Barnsley CCG,31/08/2016,C&M-PMS QOF Aspiration,PRC DELEGATED CO-COMMISSIONING,NHS BARNSLEY GP,13757534,"4,879.28 ",
Department of Health,NHS Barnsley CCG,31/08/2016,C&M-GMS Global Sum,PRC DELEGATED CO-COMMISSIONING,NHS BARNSLEY GP,13976043,"66,710.99 ",
Department of Health,NHS Barnsley CCG,31/08/2016,C&M-GMS Prem Notional Rent,PRC DELEGATED CO-COMMISSIONING,NHS BARNSLEY GP,13976043,"4,483.33 ",
Department of Health,NHS Barnsley CCG,31/08/2016,C&M-GMS Prem Rates,PRC DELEGATED CO-COMMISSIONING,NHS BARNSLEY GP,13976043,"1,751.93 ",
Department of Health,NHS Barnsley CCG,31/08/2016,C&M-GMS QOF Aspiration,PRC DELEGATED CO-COMMISSIONING,NHS BARNSLEY GP,13976043,"8,046.05 ",
Department of Health,NHS Barnsley CCG,31/08/2016,C&M-GMS Global Sum,PRC DELEGATED CO-COMMISSIONING,NHS BARNSLEY GP,13976045,"61,765.41 ",
Department of Health,NHS Barnsley CCG,31/08/2016,C&M-GMS Prem Healthcentre Rent,PRC DELEGATED CO-COMMISSIONING,NHS BARNSLEY GP,13976045,"3,289.55 ",
Department of Health,NHS Barnsley CCG,31/08/2016,C&M-GMS Prem Rates,PRC DELEGATED CO-COMMISSIONING,NHS BARNSLEY GP,13976045,677.60 ,
Department of Health,NHS Barnsley CCG,31/08/2016,C&M-GMS QOF Aspiration,PRC DELEGATED CO-COMMISSIONING,NHS BARNSLEY GP,13976045,"6,884.36 ",
Department of Health,NHS Barnsley CCG,31/08/2016,C&M-PMS Contract Value,PRC DELEGATED CO-COMMISSIONING,NHS BARNSLEY GP,13757537,"(108,446.66)",
Department of Health,NHS Barnsley CCG,31/08/2016,C&M-PMS GP Statutory Levy,PRC DELEGATED CO-COMMISSIONING,NHS BARNSLEY GP,13757537,(555.43),
Department of Health,NHS Barnsley CCG,31/08/2016,C&M-PMS Out of Hours Opt Outs,PRC DELEGATED CO-COMMISSIONING,NHS BARNSLEY GP,13757537,(120.03),
Department of Health,NHS Barnsley CCG,31/08/2016,C&M-PMS Voluntary Levy,PRC DELEGATED CO-COMMISSIONING,NHS BARNSLEY GP,13757537,(97.20),
Department of Health,NHS Barnsley CCG,31/08/2016,ME - PMS TPS Added Years Adj EEs,PRC DELEGATED CO-COMMISSIONING,NHS BARNSLEY GP,13757537,(610.96),
Department of Health,NHS Barnsley CCG,31/08/2016,ME-PMS GP Pension EEs-PMS,PRC DELEGATED CO-COMMISSIONING,NHS BARNSLEY GP,13757537,"(13,675.09)",
Department of Health,NHS Barnsley CCG,31/08/2016,ME-PMS GP Pension ERs Adjs - PMS,PRC DELEGATED CO-COMMISSIONING,NHS BARNSLEY GP,13757537,"(14,201.82)",
Department of Health,NHS Barnsley CCG,31/08/2016,C&M-PMS Baseline Adjustment,PRC DELEGATED CO-COMMISSIONING,NHS BARNSLEY GP,13757538,188.08 ,
Department of Health,NHS Barnsley CCG,31/08/2016,C&M-PMS Contract Value,PRC DELEGATED CO-COMMISSIONING,NHS BARNSLEY GP,13757538,"228,194.83 ",
Department of Health,NHS Barnsley CCG,31/08/2016,C&M-PMS Out of Hours Opt Outs,PRC DELEGATED CO-COMMISSIONING,NHS BARNSLEY GP,13757538,"(5,758.92)",
Department of Health,NHS Barnsley CCG,31/08/2016,C&M-PMS Prem Notional Rent,PRC DELEGATED CO-COMMISSIONING,NHS BARNSLEY GP,13757538,"6,333.33 ",
Department of Health,NHS Barnsley CCG,31/08/2016,C&M-PMS Prem Rates,PRC DELEGATED CO-COMMISSIONING,NHS BARNSLEY GP,13757538,"3,043.55 ",
Department of Health,NHS Barnsley CCG,31/08/2016,C&M-PMS QOF Aspiration,PRC DELEGATED CO-COMMISSIONING,NHS BARNSLEY GP,13757538,"13,009.21 ",
Department of Health,NHS Barnsley CCG,31/08/2016,C&M-PMS Cost of Drugs -Dispensing,LOCAL ENHANCED SERVICES,NHS BARNSLEY GP,13996175,"(74,816.80)",
Department of Health,NHS Barnsley CCG,31/08/2016,C&M-PMS Prsc Chrgs Cll&Rmttd by GPs,PRC DELEGATED CO-COMMISSIONING,NHS BARNSLEY GP,13996175,"(4,527.60)",
Department of Health,NHS Barnsley CCG,31/08/2016,C&M-PMS Cost of Drugs -Dispensing,LOCAL ENHANCED SERVICES,NHS BARNSLEY GP,13996176,"149,996.43 ",
Department of Health,NHS Barnsley CCG,31/08/2016,C&M-PMS Prof fees Dispensing,PRC DELEGATED CO-COMMISSIONING,NHS BARNSLEY GP,13996176,"23,086.43 ",
Department of Health,NHS Barnsley CCG,31/08/2016,C&M-PMS Prsc Chrgs Cll&Rmttd by GPs,LOCAL ENHANCED SERVICES,NHS BARNSLEY GP,13996176,"4,527.60 ",
Department of Health,NHS Barnsley CCG,31/08/2016,C&M-GMS Global Sum,PRC DELEGATED CO-COMMISSIONING,NHS BARNSLEY GP,13976046,"36,834.30 ",
Department of Health,NHS Barnsley CCG,31/08/2016,C&M-GMS Prem Notional Rent,PRC DELEGATED CO-COMMISSIONING,NHS BARNSLEY GP,13976046,"1,416.67 ",
Department of Health,NHS Barnsley CCG,31/08/2016,C&M-GMS Prem Rates,PRC DELEGATED CO-COMMISSIONING,NHS BARNSLEY GP,13976046,"1,042.62 ",
Department of Health,NHS Barnsley CCG,31/08/2016,C&M-GMS QOF Aspiration,PRC DELEGATED CO-COMMISSIONING,NHS BARNSLEY GP,13976046,"3,898.31 ",
Department of Health,NHS Barnsley CCG,31/08/2016,C&M-PMS Contract Value,PRC DELEGATED CO-COMMISSIONING,NHS BARNSLEY GP,13757535,"(39,609.32)",
Department of Health,NHS Barnsley CCG,31/08/2016,C&M-PMS GP Statutory Levy,PRC DELEGATED CO-COMMISSIONING,NHS BARNSLEY GP,13757535,(159.30),
Department of Health,NHS Barnsley CCG,31/08/2016,C&M-PMS Out of Hours Opt Outs,PRC DELEGATED CO-COMMISSIONING,NHS BARNSLEY GP,13757535,(26.54),
Department of Health,NHS Barnsley CCG,31/08/2016,C&M-PMS Prem Healthcentre Rent,PRC DELEGATED CO-COMMISSIONING,NHS BARNSLEY GP,13757535,(0.16),
Department of Health,NHS Barnsley CCG,31/08/2016,C&M-PMS Voluntary Levy,PRC DELEGATED CO-COMMISSIONING,NHS BARNSLEY GP,13757535,(27.88),
Department of Health,NHS Barnsley CCG,31/08/2016,ME-PMS GP Pension EEs-PMS,PRC DELEGATED CO-COMMISSIONING,NHS BARNSLEY GP,13757535,"(1,350.92)",
Department of Health,NHS Barnsley CCG,31/08/2016,ME-PMS GP Pension ERs Adjs - PMS,PRC DELEGATED CO-COMMISSIONING,NHS BARNSLEY GP,13757535,"(1,332.28)",
Department of Health,NHS Barnsley CCG,31/08/2016,C&M-PMS Baseline Adjustment,PRC DELEGATED CO-COMMISSIONING,NHS BARNSLEY GP,13757536,"5,074.17 ",
Department of Health,NHS Barnsley CCG,31/08/2016,C&M-PMS Contract Value,PRC DELEGATED CO-COMMISSIONING,NHS BARNSLEY GP,13757536,"77,135.54 ",
Department of Health,NHS Barnsley CCG,31/08/2016,C&M-PMS Out of Hours Opt Outs,PRC DELEGATED CO-COMMISSIONING,NHS BARNSLEY GP,13757536,"(1,809.29)",
Department of Health,NHS Barnsley CCG,31/08/2016,C&M-PMS Prem Healthcentre Rent,PRC DELEGATED CO-COMMISSIONING,NHS BARNSLEY GP,13757536,"2,989.68 ",
Department of Health,NHS Barnsley CCG,31/08/2016,C&M-PMS Prem Notional Rent,PRC DELEGATED CO-COMMISSIONING,NHS BARNSLEY GP,13757536,"7,833.33 ",
Department of Health,NHS Barnsley CCG,31/08/2016,C&M-PMS Prem Rates,PRC DELEGATED CO-COMMISSIONING,NHS BARNSLEY GP,13757536,"2,414.27 ",
Department of Health,NHS Barnsley CCG,31/08/2016,C&M-PMS QOF Aspiration,PRC DELEGATED CO-COMMISSIONING,NHS BARNSLEY GP,13757536,"2,466.00 ",
Department of Health,NHS Barnsley CCG,31/08/2016,C&M-GMS Global Sum,PRC DELEGATED CO-COMMISSIONING,NHS BARNSLEY GP,13976050,"94,883.69 ",
Department of Health,NHS Barnsley CCG,31/08/2016,C&M-GMS Prem Notional Rent,PRC DELEGATED CO-COMMISSIONING,NHS BARNSLEY GP,13976050,"6,208.33 ",
Department of Health,NHS Barnsley CCG,31/08/2016,C&M-GMS Prem Rates,PRC DELEGATED CO-COMMISSIONING,NHS BARNSLEY GP,13976050,"2,078.16 ",
Department of Health,NHS Barnsley CCG,31/08/2016,C&M-GMS Prem Water Rates,PRC DELEGATED CO-COMMISSIONING,NHS BARNSLEY GP,13976050,324.23 ,
Department of Health,NHS Barnsley CCG,31/08/2016,C&M-GMS QOF Aspiration,PRC DELEGATED CO-COMMISSIONING,NHS BARNSLEY GP,13976050,"10,127.48 ",
Department of Health,NHS Barnsley CCG,31/08/2016,C&M-PMS Contract Value,PRC DELEGATED CO-COMMISSIONING,NHS BARNSLEY GP,13757539,"(82,588.65)",
Department of Health,NHS Barnsley CCG,31/08/2016,C&M-PMS GP Statutory Levy,PRC DELEGATED CO-COMMISSIONING,NHS BARNSLEY GP,13757539,(399.77),
Department of Health,NHS Barnsley CCG,31/08/2016,C&M-PMS Out of Hours Opt Outs,PRC DELEGATED CO-COMMISSIONING,NHS BARNSLEY GP,13757539,(68.06),
Department of Health,NHS Barnsley CCG,31/08/2016,C&M-PMS Voluntary Levy,PRC DELEGATED CO-COMMISSIONING,NHS BARNSLEY GP,13757539,(69.96),
Department of Health,NHS Barnsley CCG,31/08/2016,ME - PMS TPS Added Years Adj EEs,PRC DELEGATED CO-COMMISSIONING,NHS BARNSLEY GP,13757539,(585.27),
Department of Health,NHS Barnsley CCG,31/08/2016,ME-PMS GP Pension EEs-PMS,PRC DELEGATED CO-COMMISSIONING,NHS BARNSLEY GP,13757539,"(9,199.44)",
Department of Health,NHS Barnsley CCG,31/08/2016,ME-PMS GP Pension ERs Adjs - PMS,PRC DELEGATED CO-COMMISSIONING,NHS BARNSLEY GP,13757539,"(9,496.74)",
Department of Health,NHS Barnsley CCG,31/08/2016,C&M-PMS Contract Value,PRC DELEGATED CO-COMMISSIONING,NHS BARNSLEY GP,13757540,"174,108.14 ",
Department of Health,NHS Barnsley CCG,31/08/2016,C&M-PMS Out of Hours Opt Outs,PRC DELEGATED CO-COMMISSIONING,NHS BARNSLEY GP,13757540,"(4,639.35)",
Department of Health,NHS Barnsley CCG,31/08/2016,C&M-PMS Prem Notional Rent,PRC DELEGATED CO-COMMISSIONING,NHS BARNSLEY GP,13757540,"13,500.00 ",
Department of Health,NHS Barnsley CCG,31/08/2016,C&M-PMS Prem Rates,PRC DELEGATED CO-COMMISSIONING,NHS BARNSLEY GP,13757540,520.30 ,
Department of Health,NHS Barnsley CCG,31/08/2016,C&M-PMS QOF Aspiration,PRC DELEGATED CO-COMMISSIONING,NHS BARNSLEY GP,13757540,"9,037.78 ",
Department of Health,NHS Barnsley CCG,31/08/2016,C&M-GMS LES Quality Premium,COMMISSIONING SCHEMES,NHS BARNSLEY GP,14016398,"23,378.39 ",
Department of Health,NHS Barnsley CCG,31/08/2016,Clinical&Medical-Clinical Other,COMMISSIONING SCHEMES,NHS BARNSLEY GP,14016398,"20,863.00 ",
Department of Health,NHS Barnsley CCG,31/08/2016,C&M-GMS Global Sum,PRC DELEGATED CO-COMMISSIONING,NHS BARNSLEY GP,13976048,"86,227.43 ",
Department of Health,NHS Barnsley CCG,31/08/2016,C&M-GMS Prem Healthcentre Rent,PRC DELEGATED CO-COMMISSIONING,NHS BARNSLEY GP,13976048,"31,619.95 ",
Department of Health,NHS Barnsley CCG,31/08/2016,C&M-GMS QOF Aspiration,PRC DELEGATED CO-COMMISSIONING,NHS BARNSLEY GP,13976048,"9,007.62 ",
Department of Health,NHS Barnsley CCG,31/08/2016,C&M-GMS Global Sum,PRC DELEGATED CO-COMMISSIONING,NHS BARNSLEY GP,13976052,"70,660.65 ",
Department of Health,NHS Barnsley CCG,31/08/2016,C&M-GMS Prem Rates,PRC DELEGATED CO-COMMISSIONING,NHS BARNSLEY GP,13976052,"2,534.70 ",
Department of Health,NHS Barnsley CCG,31/08/2016,C&M-GMS QOF Aspiration,PRC DELEGATED CO-COMMISSIONING,NHS BARNSLEY GP,13976052,"9,545.99 ",
Department of Health,NHS Barnsley CCG,31/08/2016,C&M-PMS Contract Value,PRC DELEGATED CO-COMMISSIONING,NHS BARNSLEY GP,13757541,"(74,620.84)",
Department of Health,NHS Barnsley CCG,31/08/2016,C&M-PMS GP Statutory Levy,PRC DELEGATED CO-COMMISSIONING,NHS BARNSLEY GP,13757541,(389.80),
Department of Health,NHS Barnsley CCG,31/08/2016,C&M-PMS Out of Hours Opt Outs,PRC DELEGATED CO-COMMISSIONING,NHS BARNSLEY GP,13757541,(118.26),
Department of Health,NHS Barnsley CCG,31/08/2016,C&M-PMS Voluntary Levy,PRC DELEGATED CO-COMMISSIONING,NHS BARNSLEY GP,13757541,(68.22),
Department of Health,NHS Barnsley CCG,31/08/2016,ME - PMS TPS Added Years Adj EEs,PRC DELEGATED CO-COMMISSIONING,NHS BARNSLEY GP,13757541,(266.67),
Department of Health,NHS Barnsley CCG,31/08/2016,ME-PMS GP Pension EEs-PMS,PRC DELEGATED CO-COMMISSIONING,NHS BARNSLEY GP,13757541,"(7,526.25)",
Department of Health,NHS Barnsley CCG,31/08/2016,ME-PMS GP Pension ERs Adjs - PMS,PRC DELEGATED CO-COMMISSIONING,NHS BARNSLEY GP,13757541,"(8,186.76)",
Department of Health,NHS Barnsley CCG,31/08/2016,C&M-PMS Contract Value,PRC DELEGATED CO-COMMISSIONING,NHS BARNSLEY GP,13757542,"158,744.10 ",
Department of Health,NHS Barnsley CCG,31/08/2016,C&M-PMS Out of Hours Opt Outs,PRC DELEGATED CO-COMMISSIONING,NHS BARNSLEY GP,13757542,"(4,208.83)",
Department of Health,NHS Barnsley CCG,31/08/2016,C&M-PMS Prem Notional Rent,PRC DELEGATED CO-COMMISSIONING,NHS BARNSLEY GP,13757542,"8,125.00 ",
Department of Health,NHS Barnsley CCG,31/08/2016,C&M-PMS Prem Rates,PRC DELEGATED CO-COMMISSIONING,NHS BARNSLEY GP,13757542,951.94 ,
Department of Health,NHS Barnsley CCG,31/08/2016,C&M-PMS QOF Aspiration,PRC DELEGATED CO-COMMISSIONING,NHS BARNSLEY GP,13757542,"9,498.69 ",
Department of Health,NHS Barnsley CCG,31/08/2016,C&M-GMS LES Quality Premium,COMMISSIONING SCHEMES,NHS BARNSLEY GP,14016394,"21,165.93 ",
Department of Health,NHS Barnsley CCG,31/08/2016,Clinical&Medical-Clinical Other,COMMISSIONING SCHEMES,NHS BARNSLEY GP,14016394,"18,888.58 ",
Department of Health,NHS Barnsley CCG,31/08/2016,C&M-GMS Global Sum,PRC DELEGATED CO-COMMISSIONING,NHS BARNSLEY GP,13976053,"22,542.12 ",
Department of Health,NHS Barnsley CCG,31/08/2016,C&M-GMS Prem Notional Rent,PRC DELEGATED CO-COMMISSIONING,NHS BARNSLEY GP,13976053,"1,572.92 ",
Department of Health,NHS Barnsley CCG,31/08/2016,C&M-GMS Prem Rates,PRC DELEGATED CO-COMMISSIONING,NHS BARNSLEY GP,13976053,433.58 ,
Department of Health,NHS Barnsley CCG,31/08/2016,C&M-GMS QOF Aspiration,PRC DELEGATED CO-COMMISSIONING,NHS BARNSLEY GP,13976053,"2,279.92 ",
Department of Health,NHS Barnsley CCG,31/08/2016,C&M-PMS Contract Value,PRC DELEGATED CO-COMMISSIONING,NHS BARNSLEY GP,13757543,"(78,437.25)",
Department of Health,NHS Barnsley CCG,31/08/2016,C&M-PMS GP Statutory Levy,PRC DELEGATED CO-COMMISSIONING,NHS BARNSLEY GP,13757543,(368.97),
Department of Health,NHS Barnsley CCG,31/08/2016,C&M-PMS Out of Hours Opt Outs,PRC DELEGATED CO-COMMISSIONING,NHS BARNSLEY GP,13757543,(76.56),
Department of Health,NHS Barnsley CCG,31/08/2016,C&M-PMS Voluntary Levy,PRC DELEGATED CO-COMMISSIONING,NHS BARNSLEY GP,13757543,(64.57),
Department of Health,NHS Barnsley CCG,31/08/2016,ME-PMS GP Pension EEs-PMS,PRC DELEGATED CO-COMMISSIONING,NHS BARNSLEY GP,13757543,"(5,958.75)",
Department of Health,NHS Barnsley CCG,31/08/2016,ME-PMS GP Pension ERs Adjs - PMS,PRC DELEGATED CO-COMMISSIONING,NHS BARNSLEY GP,13757543,"(6,423.09)",
Department of Health,NHS Barnsley CCG,31/08/2016,C&M-PMS Contract Value,PRC DELEGATED CO-COMMISSIONING,NHS BARNSLEY GP,13757544,"165,943.11 ",
Department of Health,NHS Barnsley CCG,31/08/2016,C&M-PMS DES Minor Surgery,PRC DELEGATED CO-COMMISSIONING,NHS BARNSLEY GP,13757544,"1,491.70 ",
Department of Health,NHS Barnsley CCG,31/08/2016,C&M-PMS Out of Hours Opt Outs,PRC DELEGATED CO-COMMISSIONING,NHS BARNSLEY GP,13757544,"(4,424.42)",
Department of Health,NHS Barnsley CCG,31/08/2016,C&M-PMS Prem Actual Rent,PRC DELEGATED CO-COMMISSIONING,NHS BARNSLEY GP,13757544,"12,708.33 ",
Department of Health,NHS Barnsley CCG,31/08/2016,C&M-PMS Prem Rates,PRC DELEGATED CO-COMMISSIONING,NHS BARNSLEY GP,13757544,"2,153.66 ",
Department of Health,NHS Barnsley CCG,31/08/2016,C&M-PMS QOF Aspiration,PRC DELEGATED CO-COMMISSIONING,NHS BARNSLEY GP,13757544,"9,731.41 ",
Department of Health,NHS Barnsley CCG,31/08/2016,C&M-PMS Contract Value,PRC DELEGATED CO-COMMISSIONING,NHS BARNSLEY GP,13757545,"(67,727.16)",
Department of Health,NHS Barnsley CCG,31/08/2016,C&M-PMS GP Statutory Levy,PRC DELEGATED CO-COMMISSIONING,NHS BARNSLEY GP,13757545,(349.63),
Department of Health,NHS Barnsley CCG,31/08/2016,C&M-PMS Out of Hours Opt Outs,PRC DELEGATED CO-COMMISSIONING,NHS BARNSLEY GP,13757545,(90.23),
Department of Health,NHS Barnsley CCG,31/08/2016,ME-PMS GP Pension EEs-PMS,PRC DELEGATED CO-COMMISSIONING,NHS BARNSLEY GP,13757545,"(3,701.04)",
Department of Health,NHS Barnsley CCG,31/08/2016,ME-PMS GP Pension ERs Adjs - PMS,PRC DELEGATED CO-COMMISSIONING,NHS BARNSLEY GP,13757545,"(3,963.45)",
Department of Health,NHS Barnsley CCG,31/08/2016,C&M-PMS Contract Value,PRC DELEGATED CO-COMMISSIONING,NHS BARNSLEY GP,13757546,"143,744.10 ",
Department of Health,NHS Barnsley CCG,31/08/2016,C&M-PMS Out of Hours Opt Outs,PRC DELEGATED CO-COMMISSIONING,NHS BARNSLEY GP,13757546,"(3,820.17)",
Department of Health,NHS Barnsley CCG,31/08/2016,C&M-PMS Prem Actual Rent,PRC DELEGATED CO-COMMISSIONING,NHS BARNSLEY GP,13757546,"8,566.67 ",
Department of Health,NHS Barnsley CCG,31/08/2016,C&M-PMS Prem Rates,PRC DELEGATED CO-COMMISSIONING,NHS BARNSLEY GP,13757546,"1,428.87 ",
Department of Health,NHS Barnsley CCG,31/08/2016,C&M-PMS QOF Aspiration,PRC DELEGATED CO-COMMISSIONING,NHS BARNSLEY GP,13757546,"7,252.24 ",
Department of Health,NHS Barnsley CCG,31/08/2016,C&M-GMS Global Sum,PRC DELEGATED CO-COMMISSIONING,NHS BARNSLEY GP,13976055,"51,632.56 ",
Department of Health,NHS Barnsley CCG,31/08/2016,C&M-GMS Prem Healthcentre Rent,PRC DELEGATED CO-COMMISSIONING,NHS BARNSLEY GP,13976055,"20,522.19 ",
Department of Health,NHS Barnsley CCG,31/08/2016,C&M-GMS QOF Aspiration,PRC DELEGATED CO-COMMISSIONING,NHS BARNSLEY GP,13976055,"5,719.94 ",
Department of Health,NHS Barnsley CCG,31/08/2016,C&M-PMS Contract Value,PRC DELEGATED CO-COMMISSIONING,NHS BARNSLEY GP,13757547,"(84,643.34)",
Department of Health,NHS Barnsley CCG,31/08/2016,C&M-PMS GP Statutory Levy,PRC DELEGATED CO-COMMISSIONING,NHS BARNSLEY GP,13757547,(441.27),
Department of Health,NHS Barnsley CCG,31/08/2016,C&M-PMS Out of Hours Opt Outs,PRC DELEGATED CO-COMMISSIONING,NHS BARNSLEY GP,13757547,(94.51),
Department of Health,NHS Barnsley CCG,31/08/2016,C&M-PMS Voluntary Levy,PRC DELEGATED CO-COMMISSIONING,NHS BARNSLEY GP,13757547,(77.22),
Department of Health,NHS Barnsley CCG,31/08/2016,ME-PMS GP Pension EEs-PMS,PRC DELEGATED CO-COMMISSIONING,NHS BARNSLEY GP,13757547,"(6,753.36)",
Department of Health,NHS Barnsley CCG,31/08/2016,ME-PMS GP Pension ERs Adjs - PMS,PRC DELEGATED CO-COMMISSIONING,NHS BARNSLEY GP,13757547,"(7,565.93)",
Department of Health,NHS Barnsley CCG,31/08/2016,C&M-PMS Contract Value,PRC DELEGATED CO-COMMISSIONING,NHS BARNSLEY GP,13757548,"179,313.57 ",
Department of Health,NHS Barnsley CCG,31/08/2016,C&M-PMS DES UNPLANNED ADMISSIONS,PRC DELEGATED CO-COMMISSIONING,NHS BARNSLEY GP,13757548,"10,198.65 ",
Department of Health,NHS Barnsley CCG,31/08/2016,C&M-PMS Out of Hours Opt Outs,PRC DELEGATED CO-COMMISSIONING,NHS BARNSLEY GP,13757548,"(4,774.83)",
Department of Health,NHS Barnsley CCG,31/08/2016,C&M-PMS Prem Rates,PRC DELEGATED CO-COMMISSIONING,NHS BARNSLEY GP,13757548,"11,741.63 ",
Department of Health,NHS Barnsley CCG,31/08/2016,C&M-PMS QOF Aspiration,PRC DELEGATED CO-COMMISSIONING,NHS BARNSLEY GP,13757548,"11,102.10 ",
Department of Health,NHS Barnsley CCG,31/08/2016,C&M-GMS LES Quality Premium,COMMISSIONING SCHEMES,NHS BARNSLEY GP,14032775,"24,011.92 ",
Department of Health,NHS Barnsley CCG,31/08/2016,Clinical&Medical-Clinical Other,COMMISSIONING SCHEMES,NHS BARNSLEY GP,14032775,"21,428.38 ",
Department of Health,NHS Barnsley CCG,31/08/2016,C&M-GMS Global Sum,PRC DELEGATED CO-COMMISSIONING,NHS BARNSLEY GP,13976059,"42,324.78 ",
Department of Health,NHS Barnsley CCG,31/08/2016,C&M-GMS Prem Notional Rent,PRC DELEGATED CO-COMMISSIONING,NHS BARNSLEY GP,13976059,"2,541.67 ",
Department of Health,NHS Barnsley CCG,31/08/2016,C&M-GMS Prem Rates,PRC DELEGATED CO-COMMISSIONING,NHS BARNSLEY GP,13976059,973.29 ,
Department of Health,NHS Barnsley CCG,31/08/2016,C&M-GMS Prem Water Rates,PRC DELEGATED CO-COMMISSIONING,NHS BARNSLEY GP,13976059,118.28 ,
Department of Health,NHS Barnsley CCG,31/08/2016,C&M-GMS QOF Aspiration,PRC DELEGATED CO-COMMISSIONING,NHS BARNSLEY GP,13976059,"3,306.22 ",
Department of Health,NHS Barnsley CCG,31/08/2016,C&M-PMS Contract Value,PRC DELEGATED CO-COMMISSIONING,NHS BARNSLEY GP,13763713,"(32,829.50)",
Department of Health,NHS Barnsley CCG,31/08/2016,C&M-PMS GP Statutory Levy,PRC DELEGATED CO-COMMISSIONING,NHS BARNSLEY GP,13763713,(141.27),
Department of Health,NHS Barnsley CCG,31/08/2016,C&M-PMS Out of Hours Opt Outs,PRC DELEGATED CO-COMMISSIONING,NHS BARNSLEY GP,13763713,(30.66),
Department of Health,NHS Barnsley CCG,31/08/2016,C&M-PMS Voluntary Levy,PRC DELEGATED CO-COMMISSIONING,NHS BARNSLEY GP,13763713,(24.72),
Department of Health,NHS Barnsley CCG,31/08/2016,ME-PMS GP Pension EEs-PMS,PRC DELEGATED CO-COMMISSIONING,NHS BARNSLEY GP,13763713,"(1,287.50)",
Department of Health,NHS Barnsley CCG,31/08/2016,ME-PMS GP Pension ERs Adjs - PMS,PRC DELEGATED CO-COMMISSIONING,NHS BARNSLEY GP,13763713,"(1,472.90)",
Department of Health,NHS Barnsley CCG,31/08/2016,C&M-PMS Contract Value,PRC DELEGATED CO-COMMISSIONING,NHS BARNSLEY GP,13763714,"69,067.10 ",
Department of Health,NHS Barnsley CCG,31/08/2016,C&M-PMS DES Minor Surgery,PRC DELEGATED CO-COMMISSIONING,NHS BARNSLEY GP,13763714,298.34 ,
Department of Health,NHS Barnsley CCG,31/08/2016,C&M-PMS Out of Hours Opt Outs,PRC DELEGATED CO-COMMISSIONING,NHS BARNSLEY GP,13763714,"(1,768.50)",
Department of Health,NHS Barnsley CCG,31/08/2016,C&M-PMS Prem Healthcentre Rent,PRC DELEGATED CO-COMMISSIONING,NHS BARNSLEY GP,13763714,"10,835.69 ",
Department of Health,NHS Barnsley CCG,31/08/2016,C&M-PMS QOF Aspiration,PRC DELEGATED CO-COMMISSIONING,NHS BARNSLEY GP,13763714,"4,195.24 ",
Department of Health,NHS Barnsley CCG,31/08/2016,Cont Care-Mental Health (65+),CHC ADULT FULLY FUNDED,GREENSIDE HEALTH CARE LTD,13774273,"(45,382.56)",
Department of Health,NHS Barnsley CCG,31/08/2016,Income tax <1Yr,BALANCE SHEET,HMRC,13867129,"43,794.82 ",
Department of Health,NHS Barnsley CCG,31/08/2016,Income tax <1Yr-Student Loans,BALANCE SHEET,HMRC,13867129,616.00 ,
Department of Health,NHS Barnsley CCG,31/08/2016,National Insurance < 1 yr-NI- ERS,BALANCE SHEET,HMRC,13867129,"29,964.51 ",
Department of Health,NHS Barnsley CCG,31/08/2016,National Insurance < 1 yr-NI-EES,BALANCE SHEET,HMRC,13867129,"21,028.83 ",
Department of Health,NHS Barnsley CCG,31/08/2016,Statutory Mat Pay < 1 yr,BALANCE SHEET,HMRC,13867129,"(2,054.56)",
Department of Health,NHS Barnsley CCG,31/08/2016,C&M-GMS LES Quality Premium,COMMISSIONING SCHEMES,HOLLYGREEN PRACTICE,14016407,"23,065.38 ",
Department of Health,NHS Barnsley CCG,31/08/2016,Clinical&Medical-Clinical Other,COMMISSIONING SCHEMES,HOLLYGREEN PRACTICE,14016407,"20,583.67 ",
Department of Health,NHS Barnsley CCG,31/08/2016,C&M-GMS DES Minor Surgery,PRC DELEGATED CO-COMMISSIONING,NHS BARNSLEY GP,13976061,"2,258.86 ",
Department of Health,NHS Barnsley CCG,31/08/2016,C&M-GMS Global Sum,PRC DELEGATED CO-COMMISSIONING,NHS BARNSLEY GP,13976061,"76,942.99 ",
Department of Health,NHS Barnsley CCG,31/08/2016,C&M-GMS Prem Healthcentre Rent,PRC DELEGATED CO-COMMISSIONING,NHS BARNSLEY GP,13976061,"22,577.78 ",
Department of Health,NHS Barnsley CCG,31/08/2016,C&M-GMS Prem Notional Rent,PRC DELEGATED CO-COMMISSIONING,NHS BARNSLEY GP,13976061,"1,312.50 ",
Department of Health,NHS Barnsley CCG,31/08/2016,C&M-GMS Prem Rates,PRC DELEGATED CO-COMMISSIONING,NHS BARNSLEY GP,13976061,653.40 ,
Department of Health,NHS Barnsley CCG,31/08/2016,C&M-GMS QOF Aspiration,PRC DELEGATED CO-COMMISSIONING,NHS BARNSLEY GP,13976061,"8,766.44 ",
Department of Health,NHS Barnsley CCG,31/08/2016,C&M-GMS LES Quality Premium,COMMISSIONING SCHEMES,NHS BARNSLEY GP,14016387,"20,490.81 ",
Department of Health,NHS Barnsley CCG,31/08/2016,Clinical&Medical-Clinical Other,COMMISSIONING SCHEMES,NHS BARNSLEY GP,14016387,"18,286.11 ",
Department of Health,NHS Barnsley CCG,31/08/2016,C&M-GMS LES Quality Premium,COMMISSIONING SCHEMES,NHS BARNSLEY GP,14032815,"25,213.74 ",
Department of Health,NHS Barnsley CCG,31/08/2016,Clinical&Medical-Clinical Other,COMMISSIONING SCHEMES,NHS BARNSLEY GP,14032815,"22,500.87 ",
Department of Health,NHS Barnsley CCG,31/08/2016,C&M-PMS Contract Value,PRC DELEGATED CO-COMMISSIONING,NHS BARNSLEY GP,13757549,"(44,156.29)",
Department of Health,NHS Barnsley CCG,31/08/2016,C&M-PMS GP Statutory Levy,PRC DELEGATED CO-COMMISSIONING,NHS BARNSLEY GP,13757549,(209.87),
Department of Health,NHS Barnsley CCG,31/08/2016,C&M-PMS Out of Hours Opt Outs,PRC DELEGATED CO-COMMISSIONING,NHS BARNSLEY GP,13757549,(31.62),
Department of Health,NHS Barnsley CCG,31/08/2016,C&M-PMS Voluntary Levy,PRC DELEGATED CO-COMMISSIONING,NHS BARNSLEY GP,13757549,(36.73),
Department of Health,NHS Barnsley CCG,31/08/2016,ME-PMS GP Pension EEs-PMS,PRC DELEGATED CO-COMMISSIONING,NHS BARNSLEY GP,13757549,(846.79),
Department of Health,NHS Barnsley CCG,31/08/2016,ME-PMS GP Pension ERs Adjs - PMS,PRC DELEGATED CO-COMMISSIONING,NHS BARNSLEY GP,13757549,(896.97),
Department of Health,NHS Barnsley CCG,31/08/2016,C&M-PMS Baseline Adjustment,PRC DELEGATED CO-COMMISSIONING,NHS BARNSLEY GP,13757550,"3,001.58 ",
Department of Health,NHS Barnsley CCG,31/08/2016,C&M-PMS Contract Value,PRC DELEGATED CO-COMMISSIONING,NHS BARNSLEY GP,13757550,"88,779.62 ",
Department of Health,NHS Barnsley CCG,31/08/2016,C&M-PMS Out of Hours Opt Outs,PRC DELEGATED CO-COMMISSIONING,NHS BARNSLEY GP,13757550,"(2,155.39)",
Department of Health,NHS Barnsley CCG,31/08/2016,C&M-PMS Prem Healthcentre Rent,PRC DELEGATED CO-COMMISSIONING,NHS BARNSLEY GP,13757550,"5,694.47 ",
Department of Health,NHS Barnsley CCG,31/08/2016,C&M-PMS Prem Notional Rent,PRC DELEGATED CO-COMMISSIONING,NHS BARNSLEY GP,13757550,"3,583.33 ",
Department of Health,NHS Barnsley CCG,31/08/2016,C&M-PMS QOF Aspiration,PRC DELEGATED CO-COMMISSIONING,NHS BARNSLEY GP,13757550,"4,198.69 ",
Department of Health,NHS Barnsley CCG,31/08/2016,External Data Contracts,COMMISSIONING SCHEMES,KIER BUSINESS SERVICES LTD,13685444,"73,794.00 ",GB900540375
Department of Health,NHS Barnsley CCG,31/08/2016,External Data Contracts,CORPORATE COSTS & SERVICES,KIER BUSINESS SERVICES LTD,13685444,"11,953.00 ",GB900540375
Department of Health,NHS Barnsley CCG,31/08/2016,C&M-PMS Contract Value,PRC DELEGATED CO-COMMISSIONING,NHS BARNSLEY GP,13763711,"(22,994.75)",
Department of Health,NHS Barnsley CCG,31/08/2016,C&M-PMS Out of Hours Opt Outs,PRC DELEGATED CO-COMMISSIONING,NHS BARNSLEY GP,13763711,(26.98),
Department of Health,NHS Barnsley CCG,31/08/2016,ME-PMS GP Pension EEs-PMS,PRC DELEGATED CO-COMMISSIONING,NHS BARNSLEY GP,13763711,"(1,052.03)",
Department of Health,NHS Barnsley CCG,31/08/2016,ME-PMS GP Pension ERs Adjs - PMS,PRC DELEGATED CO-COMMISSIONING,NHS BARNSLEY GP,13763711,"(1,395.75)",
Department of Health,NHS Barnsley CCG,31/08/2016,C&M-PMS Baseline Adjustment,PRC DELEGATED CO-COMMISSIONING,NHS BARNSLEY GP,13763712,"1,386.00 ",
Department of Health,NHS Barnsley CCG,31/08/2016,C&M-PMS Contract Value,PRC DELEGATED CO-COMMISSIONING,NHS BARNSLEY GP,13763712,"46,958.82 ",
Department of Health,NHS Barnsley CCG,31/08/2016,C&M-PMS Out of Hours Opt Outs,PRC DELEGATED CO-COMMISSIONING,NHS BARNSLEY GP,13763712,"(1,151.58)",
Department of Health,NHS Barnsley CCG,31/08/2016,C&M-PMS Prem Notional Rent,PRC DELEGATED CO-COMMISSIONING,NHS BARNSLEY GP,13763712,"4,145.83 ",
Department of Health,NHS Barnsley CCG,31/08/2016,C&M-PMS Prem Rates,PRC DELEGATED CO-COMMISSIONING,NHS BARNSLEY GP,13763712,762.30 ,
Department of Health,NHS Barnsley CCG,31/08/2016,C&M-PMS QOF Aspiration,PRC DELEGATED CO-COMMISSIONING,NHS BARNSLEY GP,13763712,"1,890.25 ",
Department of Health,NHS Barnsley CCG,31/08/2016,C&M-PMS Cost of Drugs -Dispensing,LOCAL ENHANCED SERVICES,NHS BARNSLEY GP,13998047,"27,074.40 ",
Department of Health,NHS Barnsley CCG,31/08/2016,C&M-PMS Prof fees Dispensing,PRC DELEGATED CO-COMMISSIONING,NHS BARNSLEY GP,13998047,"4,693.92 ",
Department of Health,NHS Barnsley CCG,31/08/2016,C&M-PMS Prsc Chrgs Cll&Rmttd by GPs,LOCAL ENHANCED SERVICES,NHS BARNSLEY GP,13998047,"1,579.20 ",
Department of Health,NHS Barnsley CCG,31/08/2016,C&M-APMS Contract Value,PRC DELEGATED CO-COMMISSIONING,NHS BARNSLEY GP,13757554,"17,005.38 ",
Department of Health,NHS Barnsley CCG,31/08/2016,C&M-APMS OOH Opt Outs,PRC DELEGATED CO-COMMISSIONING,NHS BARNSLEY GP,13757554,(828.26),
Department of Health,NHS Barnsley CCG,31/08/2016,C&M-APMS Prem Other,PRC DELEGATED CO-COMMISSIONING,NHS BARNSLEY GP,13757554,"4,744.50 ",
Department of Health,NHS Barnsley CCG,31/08/2016,C&M-PMS Contract Value,PRC DELEGATED CO-COMMISSIONING,NHS BARNSLEY GP,13757554,"15,436.58 ",
Department of Health,NHS Barnsley CCG,31/08/2016,C&M-PMS Prem Healthcentre Rent,PRC DELEGATED CO-COMMISSIONING,NHS BARNSLEY GP,13757554,12.41 ,
Department of Health,NHS Barnsley CCG,31/08/2016,C&M-PMS QOF Aspiration,PRC DELEGATED CO-COMMISSIONING,NHS BARNSLEY GP,13757554,"1,422.76 ",
Department of Health,NHS Barnsley CCG,31/08/2016,Hcare Srv Rec NHS Trust-Contract Baseline,ACUTE COMMISSIONING,LEEDS TEACHING HOSPITALS NHS TRUST,13685481,"35,003.80 ",
Department of Health,NHS Barnsley CCG,31/07/2016,Hcare Srv Rec NHS Trust-CQUIN,ACUTE COMMISSIONING,LEEDS TEACHING HOSPITALS NHS TRUST,13517361,"1,581.88 ",
Department of Health,NHS Barnsley CCG,31/07/2016,Hcare Srv Rec NHS Trust-Contract Baseline,ACUTE COMMISSIONING,LEEDS TEACHING HOSPITALS NHS TRUST,13517361,"73,791.42 ",
Department of Health,NHS Barnsley CCG,31/08/2016,Hcare Srv Rec NHS Trust-CQUIN,ACUTE COMMISSIONING,MID YORKSHIRE HOSPITALS NHS TRUST,14016403,"2,195.00 ",654967780
Department of Health,NHS Barnsley CCG,31/08/2016,Hcare Srv Rec NHS Trust-Contract Baseline,ACUTE COMMISSIONING,MID YORKSHIRE HOSPITALS NHS TRUST,14016403,"205,233.00 ",654967780
Department of Health,NHS Barnsley CCG,31/07/2016,Hcare Srv Rec NHS Trust-CQUIN,ACUTE COMMISSIONING,MID YORKSHIRE HOSPITALS NHS TRUST,13593102,"2,195.00 ",654967780
Department of Health,NHS Barnsley CCG,31/07/2016,Hcare Srv Rec NHS Trust-Contract Baseline,ACUTE COMMISSIONING,MID YORKSHIRE HOSPITALS NHS TRUST,13593102,"205,233.00 ",654967780
Department of Health,NHS Barnsley CCG,31/08/2016,Chrgs from SLA,CONTINUING HEALTHCARE ASSESSMENT & SUPPORT,NHS DONCASTER CCG,13871371,"50,938.43 ",
Department of Health,NHS Barnsley CCG,31/08/2016,Chrgs from SLA,CONTINUING HEALTHCARE ASSESSMENT & SUPPORT,NHS DONCASTER CCG,13871384,"71,024.40 ",
Department of Health,NHS Barnsley CCG,31/08/2016,Other Gen Supplies & Srv,PATIENT TRANSPORT,NHS SHEFFIELD CCG,13685345,"99,314.00 ",
Department of Health,NHS Barnsley CCG,31/08/2016,Hcare Srv Rec NHS Trust-Contract Cost per Case,NCAS/OATS,NOTTINGHAM UNIVERSITY HOSPITALS NHS TRUST,13852173,"31,606.10 ",
Department of Health,NHS Barnsley CCG,31/08/2016,Clinical&Medical-Commercial Sector,ACUTE COMMISSIONING,ONEHEALTH GROUP,13906064,"54,814.90 ",
Department of Health,NHS Barnsley CCG,31/08/2016,Clinical&Medical-Commercial Sector,ACUTE COMMISSIONING,ONEHEALTH GROUP,14016415,"102,782.68 ",
Department of Health,NHS Barnsley CCG,31/08/2016,Clinical&Medical-Commercial Sector,ACUTE COMMISSIONING,PAIN MANAGEMENT SOLUTIONS LTD,13852280,"29,134.67 ",
Department of Health,NHS Barnsley CCG,31/08/2016,Hcare Srv Rec Fdtn Trust-CQUIN,MENTAL HEALTH CONTRACTS,ROTHERHAM DONCASTER & SOUTH HUMBER MENTAL HEALTH NHS FOUNDATION TRUST,13774306,674.86 ,
Department of Health,NHS Barnsley CCG,31/08/2016,Hcare Srv Rec Fdtn Trust-Contract Baseline,MENTAL HEALTH CONTRACTS,ROTHERHAM DONCASTER & SOUTH HUMBER MENTAL HEALTH NHS FOUNDATION TRUST,13774306,"49,161.69 ",
Department of Health,NHS Barnsley CCG,31/08/2016,Hcare Srv Rec Fdtn Trust-CQUIN,ACUTE COMMISSIONING,ROTHERHAM NHS FOUNDATION TRUST,13685337,"55,648.00 ",
Department of Health,NHS Barnsley CCG,31/08/2016,Hcare Srv Rec Fdtn Trust-Contract Baseline,ACUTE COMMISSIONING,ROTHERHAM NHS FOUNDATION TRUST,13685337,"551,459.00 ",
Department of Health,NHS Barnsley CCG,31/08/2016,Hcare Srv Rec Fdtn Trust-CQUIN,COMMUNITY SERVICES,ROTHERHAM NHS FOUNDATION TRUST,13685339,"3,077.00 ",
Department of Health,NHS Barnsley CCG,31/08/2016,Hcare Srv Rec Fdtn Trust-Contract Baseline,COMMUNITY SERVICES,ROTHERHAM NHS FOUNDATION TRUST,13685339,"42,519.00 ",
Department of Health,NHS Barnsley CCG,31/08/2016,C&M-PMS Contract Value,PRC DELEGATED CO-COMMISSIONING,NHS BARNSLEY GP,13763715,"(32,412.67)",
Department of Health,NHS Barnsley CCG,31/08/2016,C&M-PMS GP Statutory Levy,PRC DELEGATED CO-COMMISSIONING,NHS BARNSLEY GP,13763715,(147.07),
Department of Health,NHS Barnsley CCG,31/08/2016,C&M-PMS Out of Hours Opt Outs,PRC DELEGATED CO-COMMISSIONING,NHS BARNSLEY GP,13763715,(68.42),
Department of Health,NHS Barnsley CCG,31/08/2016,C&M-PMS Voluntary Levy,PRC DELEGATED CO-COMMISSIONING,NHS BARNSLEY GP,13763715,(25.74),
Department of Health,NHS Barnsley CCG,31/08/2016,ME-PMS GP Pension EEs-PMS,PRC DELEGATED CO-COMMISSIONING,NHS BARNSLEY GP,13763715,"(1,426.25)",
Department of Health,NHS Barnsley CCG,31/08/2016,ME-PMS GP Pension ERs Adjs - PMS,PRC DELEGATED CO-COMMISSIONING,NHS BARNSLEY GP,13763715,"(1,561.08)",
Department of Health,NHS Barnsley CCG,31/08/2016,C&M-PMS Baseline Adjustment,PRC DELEGATED CO-COMMISSIONING,NHS BARNSLEY GP,13763716,407.50 ,
Department of Health,NHS Barnsley CCG,31/08/2016,C&M-PMS Contract Value,PRC DELEGATED CO-COMMISSIONING,NHS BARNSLEY GP,13763716,"68,449.42 ",
Department of Health,NHS Barnsley CCG,31/08/2016,C&M-PMS DES UNPLANNED ADMISSIONS,PRC DELEGATED CO-COMMISSIONING,NHS BARNSLEY GP,13763716,"6,792.94 ",
Department of Health,NHS Barnsley CCG,31/08/2016,C&M-PMS Out of Hours Opt Outs,PRC DELEGATED CO-COMMISSIONING,NHS BARNSLEY GP,13763716,"(1,701.08)",
Department of Health,NHS Barnsley CCG,31/08/2016,C&M-PMS Prem Notional Rent,PRC DELEGATED CO-COMMISSIONING,NHS BARNSLEY GP,13763716,"3,041.67 ",
Department of Health,NHS Barnsley CCG,31/08/2016,C&M-PMS QOF Aspiration,PRC DELEGATED CO-COMMISSIONING,NHS BARNSLEY GP,13763716,"2,458.56 ",
Department of Health,NHS Barnsley CCG,31/08/2016,C&M-GMS Global Sum,PRC DELEGATED CO-COMMISSIONING,NHS BARNSLEY GP,13974810,"56,714.36 ",
Department of Health,NHS Barnsley CCG,31/08/2016,C&M-GMS Prem Actual Rent,PRC DELEGATED CO-COMMISSIONING,NHS BARNSLEY GP,13974810,"4,750.00 ",
Department of Health,NHS Barnsley CCG,31/08/2016,C&M-GMS QOF Aspiration,PRC DELEGATED CO-COMMISSIONING,NHS BARNSLEY GP,13974810,"7,060.35 ",
Department of Health,NHS Barnsley CCG,31/08/2016,Hcare Srv Rec Fdtn Trust-CQUIN,ACUTE COMMISSIONING,SHEFFIELD CHILDRENS NHS FOUNDATION TRUST,13852215,"2,045.48 ",
Department of Health,NHS Barnsley CCG,31/08/2016,Hcare Srv Rec Fdtn Trust-Contract Baseline,ACUTE COMMISSIONING,SHEFFIELD CHILDRENS NHS FOUNDATION TRUST,13852215,"174,355.39 ",
Department of Health,NHS Barnsley CCG,31/08/2016,Hcare Srv Rec Fdtn Trust-Contract Baseline,ACUTE COMMISSIONING,SHEFFIELD TEACHING HOSPITALS NHS FOUNDATION TRUST,13685400,"2,121,000.00 ",654400165
Department of Health,NHS Barnsley CCG,31/08/2016,Hcare Srv Rec Fdtn Trust-Contract Baseline,ACUTE COMMISSIONING,SHEFFIELD TEACHING HOSPITALS NHS FOUNDATION TRUST,13685404,"179,000.00 ",654400165
Department of Health,NHS Barnsley CCG,31/08/2016,Hcare Srv Rec Fdtn Trust-Contract Baseline,Winter Resilience,SOUTH WEST YORKSHIRE PARTNERSHIP NHS FOUNDATION TRUST,14016422,"90,000.00 ",
Department of Health,NHS Barnsley CCG,31/07/2016,Hcare Srv Rec Fdtn Trust-CQUIN,COMMUNITY SERVICES,SOUTH WEST YORKSHIRE PARTNERSHIP NHS FOUNDATION TRUST,13593089,"36,125.00 ",
Department of Health,NHS Barnsley CCG,31/07/2016,Hcare Srv Rec Fdtn Trust-CQUIN,LEARNING DIFFICULTIES,SOUTH WEST YORKSHIRE PARTNERSHIP NHS FOUNDATION TRUST,13593089,"2,010.00 ",
Department of Health,NHS Barnsley CCG,31/07/2016,Hcare Srv Rec Fdtn Trust-CQUIN,MENTAL HEALTH SERVICES - ADULTS,SOUTH WEST YORKSHIRE PARTNERSHIP NHS FOUNDATION TRUST,13593089,"24,553.00 ",
Department of Health,NHS Barnsley CCG,31/07/2016,Hcare Srv Rec Fdtn Trust-CQUIN,MENTAL HEALTH SERVICES - OLDER PEOPLE,SOUTH WEST YORKSHIRE PARTNERSHIP NHS FOUNDATION TRUST,13593089,"4,322.00 ",
Department of Health,NHS Barnsley CCG,31/07/2016,Hcare Srv Rec Fdtn Trust-Contract Baseline,COMMUNITY SERVICES,SOUTH WEST YORKSHIRE PARTNERSHIP NHS FOUNDATION TRUST,13593089,"2,901,982.00 ",
Department of Health,NHS Barnsley CCG,31/07/2016,Hcare Srv Rec Fdtn Trust-Contract Baseline,LEARNING DIFFICULTIES,SOUTH WEST YORKSHIRE PARTNERSHIP NHS FOUNDATION TRUST,13593089,"160,876.00 ",
Department of Health,NHS Barnsley CCG,31/07/2016,Hcare Srv Rec Fdtn Trust-Contract Baseline,MENTAL HEALTH SERVICES - ADULTS,SOUTH WEST YORKSHIRE PARTNERSHIP NHS FOUNDATION TRUST,13593089,"2,007,084.00 ",
Department of Health,NHS Barnsley CCG,31/07/2016,Hcare Srv Rec Fdtn Trust-Contract Baseline,MENTAL HEALTH SERVICES - OLDER PEOPLE,SOUTH WEST YORKSHIRE PARTNERSHIP NHS FOUNDATION TRUST,13593089,"345,763.00 ",
Department of Health,NHS Barnsley CCG,31/08/2016,Hcare Srv Rec Fdtn Trust-Contract Cost per Case,NCAS/OATS,UNIVERSITY HOSPITAL BIRMINGHAM NHS FOUNDATION TRUST,14016378,"30,041.65 ",654965101
Department of Health,NHS Barnsley CCG,31/08/2016,C&M-PMS Contract Value,PRC DELEGATED CO-COMMISSIONING,NHS BARNSLEY GP,13757551,"(60,734.00)",
Department of Health,NHS Barnsley CCG,31/08/2016,C&M-PMS GP Statutory Levy,PRC DELEGATED CO-COMMISSIONING,NHS BARNSLEY GP,13757551,(290.03),
Department of Health,NHS Barnsley CCG,31/08/2016,C&M-PMS Out of Hours Opt Outs,PRC DELEGATED CO-COMMISSIONING,NHS BARNSLEY GP,13757551,(58.01),
Department of Health,NHS Barnsley CCG,31/08/2016,C&M-PMS Prem Healthcentre Rent,PRC DELEGATED CO-COMMISSIONING,NHS BARNSLEY GP,13757551,(0.88),
Department of Health,NHS Barnsley CCG,31/08/2016,C&M-PMS Voluntary Levy,PRC DELEGATED CO-COMMISSIONING,NHS BARNSLEY GP,13757551,(50.76),
Department of Health,NHS Barnsley CCG,31/08/2016,ME-PMS GP Pension EEs-PMS,PRC DELEGATED CO-COMMISSIONING,NHS BARNSLEY GP,13757551,"(1,615.80)",
Department of Health,NHS Barnsley CCG,31/08/2016,ME-PMS GP Pension ERs Adjs - PMS,PRC DELEGATED CO-COMMISSIONING,NHS BARNSLEY GP,13757551,"(1,967.45)",
Department of Health,NHS Barnsley CCG,31/08/2016,C&M-PMS Contract Value,PRC DELEGATED CO-COMMISSIONING,NHS BARNSLEY GP,13757552,"127,996.10 ",
Department of Health,NHS Barnsley CCG,31/08/2016,C&M-PMS Out of Hours Opt Outs,PRC DELEGATED CO-COMMISSIONING,NHS BARNSLEY GP,13757552,"(3,396.92)",
Department of Health,NHS Barnsley CCG,31/08/2016,C&M-PMS Prem Actual Rent,PRC DELEGATED CO-COMMISSIONING,NHS BARNSLEY GP,13757552,336.75 ,
Department of Health,NHS Barnsley CCG,31/08/2016,C&M-PMS Prem Healthcentre Rent,PRC DELEGATED CO-COMMISSIONING,NHS BARNSLEY GP,13757552,"15,940.23 ",
Department of Health,NHS Barnsley CCG,31/08/2016,C&M-PMS QOF Aspiration,PRC DELEGATED CO-COMMISSIONING,NHS BARNSLEY GP,13757552,"6,208.13 ",
Department of Health,NHS Barnsley CCG,31/08/2016,Clinical&Medical-Clinical Other,COMMISSIONING SCHEMES,NHS BARNSLEY GP,13822888,"(44,586.82)",
Department of Health,NHS Barnsley CCG,31/08/2016,Clinical&Medical-Clinical Other,COMMISSIONING SCHEMES,NHS BARNSLEY GP,13852152,"44,586.82 ",
Department of Health,NHS Barnsley CCG,31/08/2016,C&M-PMS Contract Value,PRC DELEGATED CO-COMMISSIONING,NHS BARNSLEY GP,13901044,"36,510.71 ",
Department of Health,NHS Barnsley CCG,31/08/2016,C&M-PMS GP Statutory Levy,PRC DELEGATED CO-COMMISSIONING,NHS BARNSLEY GP,13901044,(156.23),
Department of Health,NHS Barnsley CCG,31/08/2016,C&M-PMS Out of Hours Opt Outs,PRC DELEGATED CO-COMMISSIONING,NHS BARNSLEY GP,13901044,"(1,877.83)",
Department of Health,NHS Barnsley CCG,31/08/2016,C&M-PMS Prem Healthcentre Rent,PRC DELEGATED CO-COMMISSIONING,NHS BARNSLEY GP,13901044,"1,189.84 ",
Department of Health,NHS Barnsley CCG,31/08/2016,C&M-PMS Prem Rates,PRC DELEGATED CO-COMMISSIONING,NHS BARNSLEY GP,13901044,"3,064.83 ",
Department of Health,NHS Barnsley CCG,31/08/2016,C&M-PMS QOF Aspiration,PRC DELEGATED CO-COMMISSIONING,NHS BARNSLEY GP,13901044,"4,059.35 ",
Department of Health,NHS Barnsley CCG,31/08/2016,C&M-PMS Voluntary Levy,PRC DELEGATED CO-COMMISSIONING,NHS BARNSLEY GP,13901044,(27.34),
Department of Health,NHS Barnsley CCG,31/08/2016,ME-PMS GP Pension EEs-PMS,PRC DELEGATED CO-COMMISSIONING,NHS BARNSLEY GP,13901044,(520.83),
Department of Health,NHS Barnsley CCG,31/08/2016,ME-PMS GP Pension ERs Adjs - PMS,PRC DELEGATED CO-COMMISSIONING,NHS BARNSLEY GP,13901044,(595.83),
Department of Health,NHS Barnsley CCG,31/08/2016,Hcare Srv Rec NHS Trust-Non Contract,WINTER PRESSURES,YORKSHIRE AMBULANCE SERVICE NHS TRUST,13685353,"35,333.33 ",
Department of Health,NHS Barnsley CCG,31/08/2016,Hcare Srv Rec NHS Trust-Contract Baseline,NHS 111,YORKSHIRE AMBULANCE SERVICE NHS TRUST,13685367,"47,703.00 ",
Department of Health,NHS Barnsley CCG,31/08/2016,Hcare Srv Rec NHS Trust-Contract Baseline,AMBULANCE SERVICES,YORKSHIRE AMBULANCE SERVICE NHS TRUST,13685371,"608,043.00 ",
Department of Health,NHS Barnsley CCG,31/08/2016,Hcare Srv Rec NHS Trust-Contract Baseline,PATIENT TRANSPORT,YORKSHIRE AMBULANCE SERVICE NHS TRUST,13685375,"125,233.00 ",
Department of Health,NHS Barnsley CCG,31/07/2016,Hcare Srv Rec NHS Trust-CQUIN,AMBULANCE SERVICES,YORKSHIRE AMBULANCE SERVICE NHS TRUST,13617865,"20,118.00 ",
Department of Health,NHS Barnsley CCG,31/07/2016,Hcare Srv Rec NHS Trust-Contract Baseline,AMBULANCE SERVICES,YORKSHIRE AMBULANCE SERVICE NHS TRUST,13617865,"12,607.00 ",
,,,,,,,"27,267,416.11 ",
